fUSD/lending_fUSD_20250108
["ID","MTS","AMOUNT","RATE_DAILY","PERIOD"]
[348074907,1736294431191,150.0,0.00022376,120]
[348074909,1736294573050,5000.0,0.0002301,120]
[348074910,1736294597489,5223.59122,0.0002301,120]
[348074911,1736294819116,-271.8152771,8.219e-05,2]
[348074927,1736295031939,-761.54733521,8.219e-05,2]
[348074928,1736295031986,-367.38738769,8.219e-05,2]
[348074929,1736295031998,-250.0,8.67e-05,2]
[348074930,1736295032010,-192.55,8.767e-05,2]
[348074931,1736295032022,-167.08,8.849e-05,2]
[348074932,1736295032033,-1000.0,8.915e-05,2]
[348074933,1736295032045,-300.0,9.094e-05,2]
[348074934,1736295032058,-236.96820196,9.095e-05,2]
[348074935,1736295032069,-811.8132,9.175e-05,2]
[348074936,1736295032081,-708.5438,9.175e-05,2]
[348074937,1736295032092,-12.37854336,9.175e-05,2]
[348074938,1736295032105,-695.95575664,9.175e-05,2]
[348074939,1736295032117,-236.96820196,9.185e-05,2]
[348074940,1736295032128,-315.0763,9.251e-05,2]
[348074941,1736295032140,-150.0,9.274e-05,2]
[348074942,1736295032151,-1254.51,9.275e-05,2]
[348074943,1736295032163,-942.19,9.275e-05,2]
[348074944,1736295032174,-681.67,9.275e-05,2]
[348074945,1736295032185,-523.745524,9.275e-05,2]
[348074946,1736295032196,-520.946511,9.275e-05,2]
[348074947,1736295032207,-1885.19,9.275e-05,2]
[348074948,1736295032218,-500.0,9.275e-05,2]
[348074949,1736295032229,-500.0,9.275e-05,2]
[348074950,1736295032240,-500.0,9.275e-05,2]
[348074951,1736295032252,-500.0,9.275e-05,2]
[348074952,1736295032263,-500.0,9.275e-05,2]
[348074953,1736295032274,-500.0,9.275e-05,2]
[348074954,1736295032286,-601.15,9.275e-05,2]
[348074955,1736295032297,-508.68,9.275e-05,2]
[348074956,1736295032309,-500.0,9.275e-05,2]
[348074957,1736295032320,-500.0,9.275e-05,2]
[348074958,1736295032332,-500.0,9.275e-05,2]
[348074959,1736295032344,-500.0,9.275e-05,2]
[348074960,1736295032355,-1307.28,9.275e-05,2]
[348074961,1736295032367,-500.0,9.275e-05,2]
[348074962,1736295032379,-500.0,9.275e-05,2]
[348074963,1736295032391,-500.0,9.275e-05,2]
[348074964,1736295032403,-500.0,9.275e-05,2]
[348074965,1736295032415,-500.0,9.275e-05,2]
[348074966,1736295032427,-500.0,9.275e-05,2]
[348074967,1736295032439,-500.0,9.275e-05,2]
[348074968,1736295032450,-500.0,9.275e-05,2]
[348074969,1736295032462,-500.0,9.275e-05,2]
[348074970,1736295032474,-500.0,9.275e-05,2]
[348074971,1736295032488,-500.0,9.275e-05,2]
[348074972,1736295032498,-500.0,9.275e-05,2]
[348074973,1736295032510,-500.0,9.275e-05,2]
[348074974,1736295032521,-414.51548786,9.275e-05,2]
[348074975,1736295032536,-85.48451214,9.275e-05,2]
[348074976,1736295032549,-500.0,9.275e-05,2]
[348074977,1736295032560,-402.84997366,9.275e-05,2]
[348074978,1736295032575,-97.15002634,9.275e-05,2]
[348074979,1736295032586,-500.0,9.275e-05,2]
[348074980,1736295032597,-500.0,9.275e-05,2]
[348074981,1736295032608,-500.0,9.275e-05,2]
[348074982,1736295032618,-500.0,9.275e-05,2]
[348074983,1736295032628,-500.0,9.275e-05,2]
[348074984,1736295032637,-500.0,9.275e-05,2]
[348074985,1736295032647,-612.4,9.275e-05,2]
[348074986,1736295032656,-528.19,9.275e-05,2]
[348074987,1736295032665,-500.0,9.275e-05,2]
[348074988,1736295032674,-592.33,9.275e-05,2]
[348074989,1736295032684,-500.0,9.275e-05,2]
[348074990,1736295032694,-500.0,9.275e-05,2]
[348074991,1736295033009,-500.0,9.275e-05,2]
[348074992,1736295033026,-500.0,9.275e-05,2]
[348074993,1736295033036,-500.0,9.275e-05,2]
[348074994,1736295033046,-8.56460304,9.275e-05,2]
[348074995,1736295033074,-491.43539696,9.275e-05,2]
[348074996,1736295033083,-500.0,9.275e-05,2]
[348074997,1736295033093,-163.83454862,9.275e-05,2]
[348074998,1736295033128,-336.16545138,9.275e-05,2]
[348074999,1736295033138,-500.0,9.275e-05,2]
[348075000,1736295033147,-533.0,9.275e-05,2]
[348075001,1736295033157,-500.0,9.275e-05,2]
[348075002,1736295033167,-500.0,9.275e-05,2]
[348075003,1736295033176,-500.0,9.275e-05,2]
[348075004,1736295033186,-500.0,9.275e-05,2]
[348075005,1736295033195,-551.49,9.275e-05,2]
[348075006,1736295033205,-500.0,9.275e-05,2]
[348075007,1736295033214,-500.0,9.275e-05,2]
[348075008,1736295033223,-500.0,9.275e-05,2]
[348075009,1736295033232,-500.0,9.275e-05,2]
[348075010,1736295033243,-500.0,9.275e-05,2]
[348075011,1736295033253,-500.0,9.275e-05,2]
[348075012,1736295033262,-500.0,9.275e-05,2]
[348075013,1736295033271,-500.0,9.275e-05,2]
[348075014,1736295033281,-500.0,9.275e-05,2]
[348075015,1736295033290,-500.0,9.275e-05,2]
[348075016,1736295033300,-500.0,9.275e-05,2]
[348075017,1736295033310,-500.0,9.275e-05,2]
[348075018,1736295033320,-500.0,9.275e-05,2]
[348075019,1736295033330,-500.0,9.275e-05,2]
[348075020,1736295033339,-609.99,9.275e-05,2]
[348075021,1736295033349,-500.0,9.275e-05,2]
[348075022,1736295033358,-500.0,9.275e-05,2]
[348075023,1736295033368,-500.0,9.275e-05,2]
[348075024,1736295033377,-500.0,9.275e-05,2]
[348075025,1736295033386,-539.9,9.275e-05,2]
[348075026,1736295033396,-500.0,9.275e-05,2]
[348075027,1736295033406,-723.14540081,9.275e-05,2]
[348075028,1736295033418,-44.76459919,9.275e-05,2]
[348075029,1736295033427,-500.0,9.275e-05,2]
[348075030,1736295033437,-648.0,9.275e-05,2]
[348075031,1736295033447,-149.16597212,9.275e-05,2]
[348075032,1736295033485,-350.83402788,9.275e-05,2]
[348075033,1736295033494,-500.0,9.275e-05,2]
[348075034,1736295033504,-500.0,9.275e-05,2]
[348075035,1736295033513,-506.45,9.275e-05,2]
[348075036,1736295033523,-608.13,9.275e-05,2]
[348075037,1736295033532,-500.0,9.275e-05,2]
[348075038,1736295033541,-500.0,9.275e-05,2]
[348075039,1736295033552,-500.0,9.275e-05,2]
[348075040,1736295033561,-500.0,9.275e-05,2]
[348075041,1736295033572,-500.0,9.275e-05,2]
[348075042,1736295033581,-500.0,9.275e-05,2]
[348075043,1736295033591,-989.92,9.275e-05,2]
[348075044,1736295033601,-500.0,9.275e-05,2]
[348075045,1736295033610,-397.08263139,9.275e-05,2]
[348075046,1736295033623,-649.79736861,9.275e-05,2]
[348075047,1736295033633,-202.35385806,9.275e-05,2]
[348075049,1736295037839,-23652.17817763,8.915e-05,2]
[348075050,1736295037849,-297.64614194,9.275e-05,2]
[348075051,1736295037859,-500.0,9.275e-05,2]
[348075052,1736295037869,-500.0,9.275e-05,2]
[348075053,1736295037878,-1000.0,9.275e-05,2]
[348075054,1736295037889,-617.82,9.275e-05,2]
[348075055,1736295037902,-730.04,9.275e-05,2]
[348075056,1736295037913,-500.0,9.275e-05,2]
[348075057,1736295037923,-500.0,9.275e-05,2]
[348075058,1736295037933,-673.79,9.275e-05,2]
[348075059,1736295037944,-500.0,9.275e-05,2]
[348075060,1736295037953,-500.0,9.275e-05,2]
[348075061,1736295037963,-500.0,9.275e-05,2]
[348075062,1736295037974,-1754.48,9.275e-05,2]
[348075063,1736295037984,-500.0,9.275e-05,2]
[348075064,1736295037993,-575.76,9.275e-05,2]
[348075065,1736295038004,-500.0,9.275e-05,2]
[348075066,1736295038014,-500.0,9.275e-05,2]
[348075067,1736295038024,-500.0,9.275e-05,2]
[348075068,1736295038033,-1236.86,9.275e-05,2]
[348075069,1736295038042,-29.23953513,9.275e-05,2]
[348075070,1736295038059,-470.76046487,9.275e-05,2]
[348075071,1736295038069,-236.96820196,9.275e-05,2]
[348075072,1736295038079,-1347.36,9.275e-05,2]
[348075073,1736295038089,-500.0,9.275e-05,2]
[348075074,1736295038099,-753.70019011,9.275e-05,2]
[348075077,1736295038122,-363.60613795,9.275e-05,2]
[348075079,1736295038139,-66.62367194,9.275e-05,2]
[348075082,1736295038149,-609.7,9.275e-05,2]
[348075083,1736295038158,-1484.49,9.275e-05,2]
[348075085,1736295038168,-1267.42,9.276e-05,2]
[348075088,1736295038178,-692.26,9.276e-05,2]
[348075090,1736295038187,-500.0,9.276e-05,2]
[348075092,1736295038196,-500.0,9.276e-05,2]
[348075094,1736295038206,-500.0,9.276e-05,2]
[348075096,1736295038215,-548.22,9.276e-05,2]
[348075098,1736295038225,-500.0,9.276e-05,2]
[348075100,1736295038234,-500.0,9.276e-05,2]
[348075102,1736295038244,-500.0,9.276e-05,2]
[348075104,1736295038253,-549.94,9.276e-05,2]
[348075106,1736295038262,-760.1,9.276e-05,2]
[348075108,1736295038271,-649.67,9.276e-05,2]
[348075110,1736295038280,-1273.41,9.276e-05,2]
[348075112,1736295038289,-3086.54,9.276e-05,2]
[348075114,1736295038299,-607.04,9.276e-05,2]
[348075116,1736295038310,-500.0,9.276e-05,2]
[348075118,1736295038319,-500.0,9.276e-05,2]
[348075120,1736295038328,-1500.93,9.276e-05,2]
[348075122,1736295038337,-500.0,9.276e-05,2]
[348075124,1736295038347,-596.56,9.276e-05,2]
[348075126,1736295038356,-500.0,9.351e-05,2]
[348075128,1736295038365,-500.0,9.351e-05,2]
[348075130,1736295038374,-500.0,9.351e-05,2]
[348075132,1736295038383,-500.0,9.351e-05,2]
[348075133,1736295038392,-500.0,9.351e-05,2]
[348075136,1736295038402,-500.0,9.351e-05,2]
[348075138,1736295038411,-500.0,9.351e-05,2]
[348075139,1736295038421,-500.0,9.351e-05,2]
[348075141,1736295038430,-500.0,9.351e-05,2]
[348075143,1736295038439,-500.0,9.351e-05,2]
[348075145,1736295038449,-500.0,9.351e-05,2]
[348075147,1736295038458,-500.0,9.351e-05,2]
[348075149,1736295038468,-500.0,9.351e-05,2]
[348075151,1736295038478,-500.0,9.351e-05,2]
[348075153,1736295038487,-500.0,9.351e-05,2]
[348075155,1736295038497,-500.0,9.351e-05,2]
[348075157,1736295038505,-500.0,9.351e-05,2]
[348075159,1736295038515,-500.0,9.351e-05,2]
[348075161,1736295038525,-500.0,9.351e-05,2]
[348075163,1736295038534,-500.0,9.351e-05,2]
[348075165,1736295038544,-500.0,9.351e-05,2]
[348075167,1736295038555,-500.0,9.351e-05,2]
[348075169,1736295038564,-500.0,9.351e-05,2]
[348075171,1736295038574,-500.0,9.351e-05,2]
[348075173,1736295038583,-582.12,9.351e-05,2]
[348075175,1736295038592,-500.0,9.351e-05,2]
[348075177,1736295038601,-500.0,9.351e-05,2]
[348075179,1736295038611,-500.0,9.351e-05,2]
[348075182,1736295038621,-500.0,9.351e-05,2]
[348075184,1736295038630,-500.0,9.351e-05,2]
[348075185,1736295038639,-500.0,9.351e-05,2]
[348075188,1736295038650,-500.0,9.351e-05,2]
[348075190,1736295038659,-500.0,9.351e-05,2]
[348075192,1736295038668,-500.0,9.351e-05,2]
[348075194,1736295038679,-500.0,9.351e-05,2]
[348075196,1736295038688,-500.0,9.351e-05,2]
[348075198,1736295038698,-500.0,9.351e-05,2]
[348075200,1736295038707,-500.0,9.351e-05,2]
[348075202,1736295038717,-500.0,9.351e-05,2]
[348075204,1736295038726,-500.0,9.351e-05,2]
[348075206,1736295038735,-500.0,9.351e-05,2]
[348075208,1736295038748,-500.0,9.351e-05,2]
[348075210,1736295038758,-500.0,9.351e-05,2]
[348075212,1736295038768,-500.0,9.351e-05,2]
[348075214,1736295038778,-500.0,9.351e-05,2]
[348075216,1736295038788,-500.0,9.351e-05,2]
[348075218,1736295038798,-602.31,9.351e-05,2]
[348075220,1736295038811,-500.0,9.351e-05,2]
[348075222,1736295038822,-500.0,9.351e-05,2]
[348075224,1736295038832,-596.87,9.351e-05,2]
[348075225,1736295038841,-500.0,9.351e-05,2]
[348075227,1736295038851,-500.0,9.351e-05,2]
[348075229,1736295038860,-500.0,9.351e-05,2]
[348075231,1736295038870,-500.0,9.351e-05,2]
[348075234,1736295038880,-500.0,9.351e-05,2]
[348075236,1736295038890,-500.0,9.351e-05,2]
[348075238,1736295038900,-226.83881288,9.351e-05,2]
[348075239,1736295038909,-500.0,9.351e-05,2]
[348075241,1736295038919,-500.0,9.351e-05,2]
[348075243,1736295038929,-500.0,9.351e-05,2]
[348075246,1736295038939,-500.0,9.351e-05,2]
[348075248,1736295038948,-500.0,9.351e-05,2]
[348075250,1736295038958,-545.89,9.351e-05,2]
[348075251,1736295038967,-256.52765012,9.351e-05,2]
[348075253,1736295038977,-500.0,9.351e-05,2]
[348075256,1736295038986,-553.14,9.351e-05,2]
[348075257,1736295038996,-500.0,9.351e-05,2]
[348075259,1736295039005,-500.0,9.351e-05,2]
[348075262,1736295039016,-500.0,9.351e-05,2]
[348075264,1736295039025,-500.0,9.351e-05,2]
[348075265,1736295039034,-500.0,9.351e-05,2]
[348075267,1736295039044,-500.0,9.351e-05,2]
[348075270,1736295039057,-560.98,9.351e-05,2]
[348075271,1736295039069,-500.0,9.351e-05,2]
[348075274,1736295039079,-500.0,9.351e-05,2]
[348075276,1736295039090,-500.0,9.351e-05,2]
[348075277,1736295039099,-500.0,9.351e-05,2]
[348075279,1736295039109,-500.0,9.351e-05,2]
[348075281,1736295039119,-500.0,9.351e-05,2]
[348075284,1736295039129,-500.0,9.351e-05,2]
[348075286,1736295039139,-500.0,9.351e-05,2]
[348075288,1736295039149,-500.0,9.351e-05,2]
[348075290,1736295039159,-293.28360574,9.351e-05,2]
[348075292,1736295039170,-500.0,9.351e-05,2]
[348075294,1736295039180,-260.77,9.351e-05,2]
[348075296,1736295039190,-500.0,9.351e-05,2]
[348075298,1736295039200,-500.0,9.351e-05,2]
[348075300,1736295039210,-500.0,9.351e-05,2]
[348075301,1736295039221,-500.0,9.351e-05,2]
[348075304,1736295039232,-500.0,9.351e-05,2]
[348075306,1736295039242,-448.65722129,9.351e-05,2]
[348075308,1736295039252,-500.0,9.351e-05,2]
[348075310,1736295039262,-500.0,9.351e-05,2]
[348075312,1736295039272,-500.0,9.351e-05,2]
[348075314,1736295039282,-500.0,9.351e-05,2]
[348075315,1736295039291,-500.0,9.351e-05,2]
[348075318,1736295039301,-500.0,9.351e-05,2]
[348075319,1736295039312,-500.0,9.351e-05,2]
[348075321,1736295039322,-500.0,9.351e-05,2]
[348075323,1736295039331,-500.0,9.351e-05,2]
[348075325,1736295039340,-500.0,9.351e-05,2]
[348075328,1736295039350,-500.0,9.351e-05,2]
[348075330,1736295039360,-500.0,9.351e-05,2]
[348075352,1736295039527,-500.0,9.351e-05,2]
[348075355,1736295039579,-605.31,9.351e-05,2]
[348075357,1736295039589,-533.25170867,9.351e-05,2]
[348075359,1736295039599,-500.0,9.351e-05,2]
[348075361,1736295039608,-500.0,9.351e-05,2]
[348075363,1736295039617,-518.44,9.351e-05,2]
[348075365,1736295039626,-500.0,9.351e-05,2]
[348075367,1736295039636,-500.0,9.351e-05,2]
[348075369,1736295039645,-831.07,9.436e-05,2]
[348075371,1736295039654,-500.0,9.436e-05,2]
[348075373,1736295039663,-1148.17,9.436e-05,2]
[348075375,1736295039672,-688.86,9.436e-05,2]
[348075377,1736295039682,-703.21,9.436e-05,2]
[348075379,1736295039691,-611.39,9.436e-05,2]
[348075381,1736295039701,-1692.47,9.436e-05,2]
[348075383,1736295039710,-783.23,9.436e-05,2]
[348075385,1736295039720,-1156.54,9.436e-05,2]
[348075387,1736295039729,-666.47,9.436e-05,2]
[348075389,1736295039739,-500.0,9.436e-05,2]
[348075391,1736295039751,-500.0,9.436e-05,2]
[348075393,1736295039761,-692.78,9.436e-05,2]
[348075395,1736295039770,-778.2019,9.449e-05,2]
[348075397,1736295039779,-5000.0,9.449e-05,2]
[348075400,1736295039790,-836.79,9.548e-05,2]
[348075402,1736295039799,-1046.36,9.548e-05,2]
[348075404,1736295039811,-3547.13,9.548e-05,2]
[348075406,1736295039821,-500.0,9.548e-05,2]
[348075408,1736295039831,-500.0,9.548e-05,2]
[348075410,1736295039842,-500.0,9.548e-05,2]
[348075412,1736295039851,-645.08,9.548e-05,2]
[348075414,1736295039861,-1000.81,9.548e-05,2]
[348075416,1736295039871,-500.0,9.548e-05,2]
[348075418,1736295039880,-950.33,9.548e-05,2]
[348075420,1736295039890,-439.03728968,9.548e-05,2]
[348075422,1736295039901,-1798.15,9.548e-05,2]
[348075424,1736295039911,-1612.63,9.548e-05,2]
[348075426,1736295039923,-536.23,9.548e-05,2]
[348075428,1736295039932,-536.23,9.548e-05,2]
[348075430,1736295039942,-779.65,9.548e-05,2]
[348075432,1736295039953,-822.85,9.548e-05,2]
[348075434,1736295039962,-634.08,9.548e-05,2]
[348075436,1736295039972,-634.08,9.548e-05,2]
[348075438,1736295039981,-500.0,9.548e-05,2]
[348075440,1736295039991,-567.83,9.548e-05,2]
[348075442,1736295040000,-1701.91,9.548e-05,2]
[348075444,1736295040009,-1042.63,9.548e-05,2]
[348075446,1736295040019,-500.0,9.548e-05,2]
[348075448,1736295040029,-627.87,9.548e-05,2]
[348075450,1736295040039,-749.63,9.548e-05,2]
[348075452,1736295040049,-552.51,9.548e-05,2]
[348075454,1736295040059,-500.0,9.548e-05,2]
[348075456,1736295040069,-759.41,9.548e-05,2]
[348075458,1736295040078,-532.98,9.548e-05,2]
[348075460,1736295040089,-500.0,9.548e-05,2]
[348075462,1736295040099,-500.0,9.548e-05,2]
[348075464,1736295040108,-500.0,9.548e-05,2]
[348075466,1736295040118,-643.42,9.548e-05,2]
[348075468,1736295040127,-500.0,9.548e-05,2]
[348075470,1736295040137,-2163.24,9.548e-05,2]
[348075472,1736295040147,-1254.51,9.549e-05,2]
[348075474,1736295040156,-942.19,9.549e-05,2]
[348075476,1736295040166,-681.67,9.549e-05,2]
[348075478,1736295040176,-523.745524,9.549e-05,2]
[348075480,1736295040185,-520.946511,9.549e-05,2]
[348075482,1736295040195,-1885.19,9.549e-05,2]
[348075484,1736295040205,-500.0,9.549e-05,2]
[348075486,1736295040214,-500.0,9.549e-05,2]
[348075488,1736295040224,-500.0,9.549e-05,2]
[348075490,1736295040233,-500.0,9.549e-05,2]
[348075492,1736295040242,-508.68,9.549e-05,2]
[348075494,1736295040252,-500.0,9.549e-05,2]
[348075496,1736295040261,-500.0,9.549e-05,2]
[348075498,1736295040271,-500.0,9.549e-05,2]
[348075500,1736295040280,-500.0,9.549e-05,2]
[348075502,1736295040289,-500.0,9.549e-05,2]
[348075504,1736295040298,-1307.28,9.549e-05,2]
[348075506,1736295040310,-500.0,9.549e-05,2]
[348075508,1736295040320,-500.0,9.549e-05,2]
[348075510,1736295040330,-500.0,9.549e-05,2]
[348075512,1736295040339,-500.0,9.549e-05,2]
[348075514,1736295040350,-500.0,9.549e-05,2]
[348075516,1736295040359,-329.96,9.549e-05,2]
[348075518,1736295040368,-500.0,9.549e-05,2]
[348075520,1736295040380,-500.0,9.549e-05,2]
[348075522,1736295040390,-500.0,9.549e-05,2]
[348075523,1736295040399,-500.0,9.549e-05,2]
[348075524,1736295040408,-500.0,9.549e-05,2]
[348075525,1736295040418,-500.0,9.549e-05,2]
[348075526,1736295040429,-521.44,9.549e-05,2]
[348075527,1736295040439,-500.0,9.549e-05,2]
[348075528,1736295040448,-500.0,9.549e-05,2]
[348075529,1736295040457,-500.0,9.549e-05,2]
[348075530,1736295040466,-500.0,9.549e-05,2]
[348075531,1736295040476,-500.0,9.549e-05,2]
[348075533,1736295040486,-500.0,9.549e-05,2]
[348075535,1736295040495,-500.0,9.549e-05,2]
[348075537,1736295040505,-500.0,9.549e-05,2]
[348075539,1736295040520,-500.0,9.549e-05,2]
[348075541,1736295040533,-500.0,9.549e-05,2]
[348075543,1736295040543,-500.0,9.549e-05,2]
[348075545,1736295040552,-500.0,9.549e-05,2]
[348075547,1736295040565,-500.0,9.549e-05,2]
[348075549,1736295040574,-500.0,9.549e-05,2]
[348075551,1736295040583,-500.0,9.549e-05,2]
[348075553,1736295040592,-500.0,9.549e-05,2]
[348075555,1736295040601,-500.0,9.549e-05,2]
[348075557,1736295040611,-500.0,9.549e-05,2]
[348075559,1736295040620,-500.0,9.549e-05,2]
[348075561,1736295040630,-500.0,9.549e-05,2]
[348075563,1736295040639,-500.0,9.549e-05,2]
[348075565,1736295040649,-500.0,9.549e-05,2]
[348075567,1736295040658,-500.0,9.549e-05,2]
[348075569,1736295040668,-500.0,9.549e-05,2]
[348075571,1736295040677,-500.0,9.549e-05,2]
[348075573,1736295040686,-500.0,9.549e-05,2]
[348075575,1736295040695,-500.0,9.549e-05,2]
[348075577,1736295040704,-500.0,9.549e-05,2]
[348075580,1736295040714,-304.35728621,9.549e-05,2]
[348075581,1736295040724,-500.0,9.549e-05,2]
[348075582,1736295040733,-500.0,9.549e-05,2]
[348075583,1736295040743,-500.0,9.549e-05,2]
[348075584,1736295040758,-500.0,9.549e-05,2]
[348075585,1736295040768,-500.0,9.549e-05,2]
[348075586,1736295040777,-500.0,9.549e-05,2]
[348075587,1736295040787,-500.0,9.549e-05,2]
[348075588,1736295040799,-500.0,9.549e-05,2]
[348075589,1736295040809,-500.0,9.549e-05,2]
[348075590,1736295040819,-500.0,9.549e-05,2]
[348075591,1736295040830,-500.0,9.549e-05,2]
[348075592,1736295040840,-500.0,9.549e-05,2]
[348075593,1736295040849,-500.0,9.549e-05,2]
[348075594,1736295040859,-500.0,9.549e-05,2]
[348075595,1736295040868,-500.0,9.549e-05,2]
[348075596,1736295040879,-500.0,9.549e-05,2]
[348075597,1736295040890,-500.0,9.549e-05,2]
[348075598,1736295040900,-612.4,9.549e-05,2]
[348075599,1736295040910,-500.0,9.549e-05,2]
[348075600,1736295040920,-500.0,9.549e-05,2]
[348075601,1736295040930,-500.0,9.549e-05,2]
[348075602,1736295040940,-500.0,9.549e-05,2]
[348075603,1736295040948,-500.0,9.549e-05,2]
[348075604,1736295040959,-500.0,9.549e-05,2]
[348075605,1736295040968,-500.0,9.549e-05,2]
[348075606,1736295040978,-500.0,9.549e-05,2]
[348075607,1736295040987,-237.44863776,9.549e-05,2]
[348075608,1736295040996,-528.19,9.549e-05,2]
[348075609,1736295041005,-500.0,9.549e-05,2]
[348075610,1736295041015,-500.0,9.549e-05,2]
[348075611,1736295041025,-500.0,9.549e-05,2]
[348075612,1736295041034,-500.0,9.549e-05,2]
[348075613,1736295041043,-500.0,9.549e-05,2]
[348075614,1736295041053,-500.0,9.549e-05,2]
[348075615,1736295041063,-500.0,9.549e-05,2]
[348075616,1736295041073,-500.0,9.549e-05,2]
[348075617,1736295041083,-500.0,9.549e-05,2]
[348075618,1736295041093,-500.0,9.549e-05,2]
[348075619,1736295041102,-500.0,9.549e-05,2]
[348075620,1736295041112,-500.0,9.549e-05,2]
[348075621,1736295041121,-500.0,9.549e-05,2]
[348075622,1736295041131,-500.0,9.549e-05,2]
[348075623,1736295041141,-500.0,9.549e-05,2]
[348075624,1736295041150,-500.0,9.549e-05,2]
[348075625,1736295041159,-500.0,9.549e-05,2]
[348075626,1736295041169,-500.0,9.549e-05,2]
[348075627,1736295041179,-500.0,9.549e-05,2]
[348075628,1736295041189,-500.0,9.549e-05,2]
[348075629,1736295041198,-500.0,9.549e-05,2]
[348075630,1736295041208,-500.0,9.549e-05,2]
[348075631,1736295041218,-500.0,9.549e-05,2]
[348075632,1736295041227,-500.0,9.549e-05,2]
[348075633,1736295041237,-500.0,9.549e-05,2]
[348075634,1736295041246,-500.0,9.549e-05,2]
[348075635,1736295041255,-500.0,9.549e-05,2]
[348075636,1736295041265,-500.0,9.549e-05,2]
[348075637,1736295041274,-500.0,9.549e-05,2]
[348075638,1736295041284,-500.0,9.549e-05,2]
[348075639,1736295041293,-500.0,9.549e-05,2]
[348075640,1736295041303,-500.0,9.549e-05,2]
[348075641,1736295041315,-500.0,9.549e-05,2]
[348075642,1736295041324,-500.0,9.549e-05,2]
[348075643,1736295041333,-500.0,9.549e-05,2]
[348075644,1736295041342,-533.0,9.549e-05,2]
[348075645,1736295041352,-500.0,9.549e-05,2]
[348075646,1736295041362,-500.0,9.549e-05,2]
[348075647,1736295041372,-491.71092378,9.549e-05,2]
[348075648,1736295041381,-500.0,9.549e-05,2]
[348075649,1736295041391,-500.0,9.549e-05,2]
[348075650,1736295041400,-500.0,9.549e-05,2]
[348075651,1736295041410,-500.0,9.549e-05,2]
[348075652,1736295041420,-500.0,9.549e-05,2]
[348075653,1736295041430,-500.0,9.549e-05,2]
[348075654,1736295041440,-500.0,9.549e-05,2]
[348075655,1736295041449,-500.0,9.549e-05,2]
[348075656,1736295041458,-500.0,9.549e-05,2]
[348075657,1736295041467,-500.0,9.549e-05,2]
[348075658,1736295041478,-500.0,9.549e-05,2]
[348075659,1736295041488,-527.35,9.549e-05,2]
[348075660,1736295041497,-486.44921783,9.549e-05,2]
[348075661,1736295042109,-500.0,9.548e-05,2]
[348075662,1736295042119,-13.55078217,9.549e-05,2]
[348075663,1736295042129,-456.14921783,9.549e-05,2]
[348075664,1736295042154,-43.85078217,9.549e-05,2]
[348075665,1736295042163,-500.0,9.549e-05,2]
[348075666,1736295042172,-500.0,9.549e-05,2]
[348075667,1736295042185,-500.0,9.549e-05,2]
[348075668,1736295042193,-500.0,9.549e-05,2]
[348075669,1736295042203,-500.0,9.549e-05,2]
[348075670,1736295042213,-500.0,9.549e-05,2]
[348075671,1736295042222,-551.49,9.549e-05,2]
[348075672,1736295042231,-500.0,9.549e-05,2]
[348075673,1736295042241,-84.30927998,9.549e-05,2]
[348075674,1736295042253,-338.23,9.549e-05,2]
[348075675,1736295042278,-77.46072002,9.549e-05,2]
[348075676,1736295042288,-500.0,9.549e-05,2]
[348075677,1736295042298,-500.0,9.549e-05,2]
[348075678,1736295042308,-500.0,9.549e-05,2]
[348075679,1736295042317,-500.0,9.549e-05,2]
[348075680,1736295042327,-500.0,9.549e-05,2]
[348075681,1736295042336,-500.0,9.549e-05,2]
[348075682,1736295042345,-500.0,9.549e-05,2]
[348075683,1736295042355,-500.0,9.549e-05,2]
[348075684,1736295042364,-500.0,9.549e-05,2]